Cogmind - Beta 15 @@@ ROGUE MODE // 2025.08.01 @ 16:44:51 Player: Tuja Result: Destroyed by Y-45 Defender with Beam Rifle Performance ------------- Evolutions (0) 0 Regions Visited (2) 400 Robots Destroyed (9) 45 Value Destroyed (327) 327 Prototype IDs (0) 0 Alien Tech Used (0) 0 Bonus (0) 0 TOTAL SCORE: 772 Bonus ------- None Cogmind --------- Core Integrity 0/250 Matter 298/300 Energy 160/160 System Corruption 0% Temperature Cool (13) Movement Walking (260) Ox2 Location -10/Mines Parts ------- > --- POWER (1) -------- Light Nuclear Core > --- PROPULSION (2) --- Aluminum Leg > --- UTILITY (2) ------ Large Storage Unit > --- WEAPON (2) ------- Light Assault Rifle Light Assault Rifle > --- INVENTORY (15) --- Ion Engine Light Treads Aluminum Leg Heat Sink Improved Heat Sink Small Laser Small Laser Mining Laser Mining Laser Peak State ------------ > --- POWER ------------ Light Nuclear Core > --- PROPULSION ------- Aluminum Leg Aluminum Leg > --- UTILITY ---------- Heat Sink Large Storage Unit > --- WEAPON ----------- Light Assault Rifle Light Assault Rifle > --- INVENTORY -------- Ion Engine Light Treads Aluminum Leg Improved Heat Sink Light Armor Plating Small Laser Mining Laser Mining Laser [Rating: 10] Favorites ----------- Power Light Ion Engine Engine Light Ion Engine Power Core Light Nuclear Core Propulsion Aluminum Leg Treads Light Treads Leg Aluminum Leg Utility Large Storage Unit Device Heat Sink Storage Large Storage Unit Processor Targeting Computer Protection Light Armor Plating Weapon Light Assault Rifle Energy Gun EM Pulse Gun Ballistic Gun Light Assault Rifle Build | -11 -10 -10 ------- Run | Yrd Mat Min Slots Evolved . | . . . Power . | . . . Propulsion . | . . . Utility . | . . . Weapon . | . . . Parts Attached 18 | 6 4 8 Power 3 | 1 . 2 Engine 2 | 1 . 1 Core 1 | . . 1 Reactor . | . . . Propulsion 6 | 2 2 2 Treads 2 | . 2 . Leg 4 | 2 . 2 Wheel . | . . . Hover . | . . . Flight . | . . . Utility 5 | 1 2 2 Device 1 | . . 1 Storage 2 | 1 1 . Processor 1 | . 1 . Hackware . | . . . Protection 1 | . . 1 Artifact . | . . . Weapon 4 | 2 . 2 Energy Gun 1 | 1 . . Energy Cannon . | . . . Ballistic Gun 3 | 1 . 2 Ballistic Cannon . | . . . Launcher . | . . . Special Weapon . | . . . Impact Weapon . | . . . Slashing Weapon . | . . . Piercing Weapon . | . . . Special Melee Weapon . | . . . Unidentified Prototypes . | . . . Parts Lost 9 | . . 9 Power 2 | . . 2 Propulsion 3 | . . 3 Utility 2 | . . 2 Weapon 2 | . . 2 Highest Loss Streak 4 | . . 4 To Critical Strikes . | . . . Average Backups 7 | 2 5 8 Power . | . 1 . Propulsion 2 | 1 2 2 Utility . | . . . Weapon 3 | . 1 3 Tool/Special . | . . . Unused Backups 5 | . 1 4 Power 1 | . . 1 Propulsion 1 | . 1 . Utility . | . . . Weapon 3 | . . 3 Tool/Special . | . . . Average Slot Usage (%) 92 | . 96 90 Engine 8 | . 14 7 Treads 7 | . 16 5 Leg 19 | . 11 21 Device 9 | . . 11 Storage 14 | . 14 14 Processor 3 | . 10 . Energy Gun 9 | . 14 7 Ballistic Gun 17 | . 14 18 Peak Build Rating 10 | 6 7 10 Average Rating 6 | 3 6 6 On Entrance 4 | . 6 7 Naked Turns . | . . . Heaviest Build 30 | 11 26 30 Greatest Support 40 | 20 40 40 Greatest Overweight (x) 2 | . . 2 Average Overweight (x) . | . . . Largest Inventory Capacity 15 | 8 15 15 Average Capacity 13 | 7 12 15 Most Carried 10 | 6 8 10 Average Carried 7 | 2 5 8 Final Capacity 15 | 8 15 15 Final Carried 9 | 4 8 9 Class Distribution -------------------- 100% | Mutant Dominant Class ---------------- Mutant | -10/Materials Mutant | -10/Mines Resources | -11 -10 -10 ----------- Run | Yrd Mat Min Matter Collected 419 | 211 96 112 Remotely . | . . . Salvage Created 392 | . 96 296 Parts 14 | . 4 10 Haulers Intercepted . | . . . Recyclers Shooed . | . . . Parts Field Recycled . | . . . Retrieved Matter . | . . . Parts Self-Destructed . | . . . Prevented . | . . . Kills | -11 -10 -10 ------- Run | Yrd Mat Min Combat Hostiles Destroyed 8 | . 2 6 Guns 8 | . 2 6 Classes Destroyed 2 | . 2 . Watcher 1 | . 1 . Grunt 8 | . 2 6 Best Kill Streak 2 | . 1 2 Combat Bots Only 2 | . 1 2 Max Kills in Single Turn 1 | . 1 1 Gunslinging . | . . . Exploded . | . . . Melee . | . . . Uniques/NPCs Destroyed . | . . . Combat | -11 -10 -10 -------- Run | Yrd Mat Min Hostile Shots Fired 68 | . 8 60 Missed 13 | . . 13 Hits 55 | . 8 47 Projectile 55 | . 8 47 AOE 10 | . . 10 Critical Strikes 1 | . . 1 Damage Taken 1023 | . 106 917 Core 262 | . . 262 Absorbed by Shields . | . . . Core Remaining (%) 100 | 100 . . Volleys Fired 37 | . 9 28 Largest 2 | . 2 2 Hottest 60 | . 60 60 Shots Fired 74 | . 18 56 Gun 74 | . 18 56 Cannon . | . . . Launcher . | . . . Special . | . . . Kinetic 46 | . 9 37 Thermal . | . . . Explosive . | . . . Electromagnetic 28 | . 9 19 Robot Hit Streak 9 | . 3 9 Robot Miss Streak 5 | . 2 5 Penetration Max . | . . . Secondary Targets 1 | . . 1 Max Gunslinging Chain 1 | . . 1 Shots Hit Robots 49 | . 11 38 Core Hits 23 | . 5 18 Critical Kills . | . . . Critical Parts Destroyed . | . . . Critical Strikes . | . . . Melee Attacks . | . . . Impact . | . . . Slashing . | . . . Piercing . | . . . Sneak Attacks . | . . . Combat Hostiles . | . . . Follow-up Attacks . | . . . Damage Inflicted 560 | . 125 435 Guns 499 | . 119 380 Cannons . | . . . Explosions 55 | . . 55 Melee . | . . . Ramming 6 | . 6 . Kinetic 208 | . 36 172 Thermal 55 | . . 55 Explosive . | . . . Electromagnetic 291 | . 83 208 Impact . | . . . Slashing . | . . . Piercing . | . . . Highest Corruption . | . . . Average Corruption . | . . . Corruption Purged . | . . . Corruption Blocked . | . . . Overload Shots . | . . . Overflow Damage . | . . . Projectiles . | . . . Explosions . | . . . Melee . | . . . Knockbacks . | . . . Impact . | . . . Kinetic . | . . . Secondary . | . . . Self-Inflicted Damage 54 | . . 54 Shots 1 | . . 1 Rammed 1 | . 1 . Targets Rammed 2 | . 2 . Kicked . | . . . Crushed 1 | . 1 . Highest Temperature 109 | . 73 109 Average Temperature 43 | . 43 44 Received Heat Transfer 369 | . 63 306 Siege Activations . | . . . Martial Activations . | . . . Shielding Activations . | . . . Robots Disrupted . | . . . Combat Hostiles . | . . . Robots Corrupted . | . . . Combat Hostiles . | . . . Parts Fried 1 | . . 1 Impact Corruptions . | . . . Robots Melted . | . . . Combat Hostiles . | . . . Parts Melted . | . . . Heat Transferred 50 | . . 50 Parts Sabotaged . | . . . Parts Stolen . | . . . Parts Stripped . | . . . Power Chain Reactions 1 | . . 1 Alert | -11 -10 -10 ------- Run | Yrd Mat Min Maximum Alert Level . | . . . Low Security (%) 100 | 100 100 100 Level 1 . | . . . Level 2 . | . . . Level 3 . | . . . Level 4 . | . . . Level 5 . | . . . High Security . | . . . Max Security . | . . . Peak Influence 65 | . 35 65 Initial . | . . . Average 9 | . 8 10 Influence Increases 242 | . 70 172 Destroy 0b10 Robot/C 160 | . 40 120 Destroy 0b10 Robot/NC 5 | . 5 . Destroy Leader 32 | . 2 30 Successful Hack 8 | . 8 . Destroy Structure 7 | . . 7 Lose Combat Pursuer 30 | . 15 15 Influence Decreases 236 | . 70 166 Time Decay 206 | . 70 136 Lost Part 30 | . . 30 Squads Dispatched . | . . . Investigation . | . . . Extermination . | . . . Reinforcement . | . . . Assault . | . . . Garrison . | . . . Intercept . | . . . Searches Triggered . | . . . Construction Impeded . | . . . Haulers Reinforced . | . . . Active Scanning Responses . | . . . Cargo Convoy Interrupts . | . . . Stealth | -11 -10 -10 --------- Run | Yrd Mat Min Distress Signals . | . . . Communications Jammed . | . . . Distress Signals . | . . . Times Spotted 17 | . 7 10 Peak Tracking Total 2 | . 2 2 Tactical Retreats 3 | . 1 2 Traps | -11 -10 -10 ------- Run | Yrd Mat Min Traps Triggered . | . . . Indirectly . | . . . Trap Hack Attempts . | . . . Triggered . | . . . Disarmed . | . . . Reprogrammed . | . . . Reused . | . . . Traps Extracted . | . . . Installed . | . . . Triggered . | . . . Machines | -11 -10 -10 ---------- Run | Yrd Mat Min Machines Disabled . | . . . Max in Single Turn . | . . . Machines Repaired . | . . . Machines Dismantled . | . . . Machines Sabotaged . | . . . Overloaded Fab Kills . | . . . Hacking | -11 -10 -10 --------- Run | Yrd Mat Min Machines Accessed 2 | . 2 . Terminals 2 | . 2 . Fabricators . | . . . Repair Stations . | . . . Recycling Units . | . . . Scanalyzers . | . . . Garrison Access . | . . . Total Hacks 5 | . 5 . Successful 1 | . 1 . Failed 4 | . 4 . Catastrophic 1 | . 1 . Database Lockouts . | . . . Manual 5 | . 5 . Terminals 5 | . 5 . Fabricators . | . . . Repair Stations . | . . . Recycling Units . | . . . Scanalyzers . | . . . Garrison Access . | . . . Terminal Hacks 1 | . 1 . Branch Access Points 1 | . 1 . Fabricator Hacks . | . . . Repair Station Hacks . | . . . Recycling Unit Hacks . | . . . Scanalyzer . | . . . Garrison Access Hacks . | . . . Unauthorized Hacks . | . . . Terminals . | . . . Fabricators . | . . . Repair Stations . | . . . Recycling Units . | . . . Scanalyzers . | . . . Garrison Access . | . . . Data Cores Recovered . | . . . Used . | . . . Hacking Detections 2 | . 2 . Full Trace Events . | . . . Feedback Events . | . . . Feedback Blocked . | . . . Robot Schematics Acquired . | . . . Robots Built . | . . . Authchips . | . . . Time . | . . . Total Robot Build Rating . | . . . Part Schematics Acquired . | . . . Parts Built . | . . . Authchips . | . . . Time . | . . . Total Part Build Rating . | . . . Parts Repaired . | . . . Time . | . . . Parts Recycled . | . . . Recycled Matter . | . . . Retrieved Matter . | . . . Retrieved Components . | . . . Parts Scanalyzed . | . . . Part Schematics Acquired . | . . . Parts Damaged . | . . . Bothacking | -11 -10 -10 ------------ Run | Yrd Mat Min Used RIF Installer . | . . . Robots Hacked . | . . . Non-combat . | . . . Combat . | . . . Robot Hacks Applied . | . . . Relay Couplers Released . | . . . Fabnet Peak Effective % . | . . . Robots Rewired . | . . . Allies Hacked . | . . . Hacks Repelled . | . . . Allies | -11 -10 -10 -------- Run | Yrd Mat Min Total Allies . | . . . Largest Group . | . . . Highest-Rated Group . | . . . Highest-Rated Ally . | . . . Total Orders . | . . . Ally Attacks . | . . . Total Damage . | . . . Kills . | . . . Allies Corrupted . | . . . Allies Melted . | . . . Intel | -11 -10 -10 ------- Run | Yrd Mat Min Active Infowar (turns) . | . . . Robot Analysis Total . | . . . Derelict Logs Recovered . | . . . Drone Launches . | . . . Drone Recoveries . | . . . Exploration | -11 -10 -10 ------------- Run | Yrd Mat Min Turns Passed 1041 | 60 236 745 Spaces Moved 502 | 44 134 324 Core 11 | 11 . . Treads 108 | . 69 39 Legs 383 | 33 65 285 Wheels . | . . . Hover . | . . . Flight . | . . . Fastest Speed 50 | 50 120 160 Average Speed 169 | 102 140 190 Slowest Speed 260 | 120 160 260 Overloaded Moves . | . . . Propulsion Burnouts . | . . . Robots Hopped . | . . . Potential Cave-ins . | . . . Cave-ins Triggered . | . . . Exploration Rate (%) 30 | 4 26 62 Regions Visited 2 Branch Regions 1 Pre-discovered Areas . | . . . Known Exits Taken 1 | . 1 . Unknown Exits Taken 1 | 1 . . Scrap Searched . | . . . Spaces Dug . | . . . Terrain Destroyed 7 | . . 7 Melee . | . . . Projectile . | . . . AOE 7 | . . 7 Terrain Rammed . | . . . Walls Destroyed . | . . . Machines Disabled . | . . . Actions | -11 -10 -10 --------- Run | Yrd Mat Min Total 626 | 59 164 403 Wait 41 | . 7 34 Move 500 | 43 133 324 Hop . | . . . Pick Up 25 | 10 7 8 Fast Attach . | . . . Attach 14 | 6 1 7 Detach . | . . . Swap 5 | . 3 2 Drop 2 | . 2 . Fire 37 | . 9 28 Melee . | . . . Ram . | . . . Kick . | . . . Crush 2 | . 2 . Escape Stasis . | . . . Rewire . | . . . Trap . | . . . Miscellaneous . | . . . Route ------- -11/Scrapyard -10/Materials (discovered 2 exits: *Min x2) -10/Mines (discovered 1 exit: [*Mat]) History --------- Turn | Location | Event 5 | -11/Scrapyard | Discovered new exit (range 16) 61 | -11/Scrapyard | Entered Materials 105 | -10/Materials | Identified exit to Mines 297 | -10/Materials | Entered Mines 311 | -10/Mines | Build established: Mutant 689 | -10/Mines | Discovered new exit (range 13) 693 | -10/Mines | Core integrity fell below 50% 701 | -10/Mines | Core integrity fell below 20% 731 | -10/Mines | Lost 4 parts (1p1n2w) 1042 | -10/Mines | Destroyed by Y-45 Defender with Beam Rifle Last Messages --------------- 00705_ K-01 Serf collects debris. 00705_ U-05 Engineer lays Concrete. 00705_ YI-UF0: "BWOOM!" 00705_ K-01 Serf destroyed. 00705_ U-05 Engineer destroyed. 00707_ The unstable cave ceiling collapses. 00709_ U-05 Engineer destroyed. 00710_ The unstable cave ceiling collapses. 00776_ K-01 Serf collects debris. 00796_ Acquired 30 matter. 00800_ K-01 Serf collects debris. 00985_ G-34 Mercenary destroyed. 00996_ G-47 Trooper destroyed. 01002_ Acquired Lgt. Nuclear Core. 01003_ Acquired 14 matter. 01007_ Acquired Imp. Heat Sink. 01010_ Acquired 20 matter. 01016_ Acquired Sml. Laser. 01031_ Aluminum Leg destroyed. 01039_ Lgt. Armor Plating destroyed. Map ----- +----------------------------------------------------+ | | | | | | | | | | | | | | | | | | | | | | | | | | | | | ?????????????????????????????????????????????????? | | ?????????????????????????????????????????????????? | | ??????????????????????????####???????????????##### | | ?????????????????????????## ##?????????????? | | ?????????????????????????# #????????????? """ | | ????????????????????###?## #????????????? """ | | ???????????????????##" ## ##??########## """ | | ???????????????????#"" # # #### | | ???????????????????#!! / # | | ???????????????????#/! $/Y ##### # | | ???????????????????#"" #Y ##???# #????## | | ???????????????????##" ##@ % ###????# #?????? | | ????????????????????#### %##??????# #?????? | | ???????????????????????# #???????# #?????? | | ???????????????????????## #???????# #### #? | | ????????????????????????#### ##???????# #? | | ???????????????????????????## ##????????# ####### | | ????????????????????????????# ##?????????# ####### | | ????????????????????????????# #??????????# | | ????????????????????????????# #??????????######## | | ????????????????????????????# #?????????????????## | | ????????????????????????????# #??????????????????# | | ????????????????????????????# #??????????????????? | | ???????????????????????????? #??????????????????? | | ???????????????????????????? #??????????????????? | | ????????????????????????????##???????????????????# | | ????????????????????????????????????????????????## | | ????????????????????????????????????????????????# | | ????????????????????????????????????????????????# | | ????????????????????????????????????????????????# | | ????????????????????????????????????????????????# | | ????????????????? ???????????????????????????## | | ??????????????? ????????????????????????????# | | ????????????? ????????????????????????????? | | ?????????? ?! < ????????????????????????????# | | ??????????#?? ???????????????????????????## | +----------------------------------------------------+ Best States ------------- Heat Dissipation 35 Energy Generation 14 Energy Capacity 160 Matter Stores 300 Matter Capacity 300 Sight Range 16 Terrain Scan Density 10 Armor Coverage 150 Evasion (%) 55 Targeting Accuracy 5 Recoil Reduction 2 Item Schematics ----------------- None Robot Schematics ------------------ None Fabricated ------------ Nothing Repaired ---------- Nothing Alien Tech Used ----------------- None Achievements -------------- None Challenges ------------ None Game ------ Seed HugeBoreGreatsword Manual? 0 Play Time 00:08:12 Cumulative 40.8 hours Start 2025.08.01 @ 16:37:02 End 2025.08.01 @ 16:44:51 Sessions 1 Manual Loads 0 Difficulty Rogue Special Mode None Game No. 25 Rogue 21 Adventurer 4 Explorer 0 Win Type - Total 0 Types 0/0/0/0/0/0/0/0/0/0 Lore% 29 Gallery% 32 Achievement% 28 Wizard Run 0 Options --------- Layout 1 ASCII 0 Keyboard 0 Movement Numpad Keybinds 1 Fullscreen 1 Font 24/Smallcaps Map View 50x35 Zoom Use 0% Tactical HUD 1 Map Filters NONE Filters NONE Steam 1 RUN: 4625a649-40b9-40f1-a82a-4d76555f5548